Cogmind - Beta 14 @@@ ROGUE MODE // 2024.08.25 @ 15:52:30 Player: DZKane Result: Destroyed by P-80 Master with Gamma Rifle Performance ------------- Evolutions (8) 4000 Regions Visited (10) 2000 Robots Destroyed (100) 500 Value Destroyed (2554) 2554 Prototype IDs (20) 400 Alien Tech Used (0) 0 Bonus (601) 601 TOTAL SCORE: 10055 Bonus ------- High Alert Combat Kills 186 Follower Combat Kills 190 Registered with UFD 300 Friendly Fire -75 Cogmind --------- Core Integrity 0/1450 Matter 300/300 Energy 74/100 System Corruption 23% Temperature Cool (0) Movement Core (50) Location -2/Research Parts ------- > --- POWER (2) -------- (None) > --- PROPULSION (6) --- (None) > --- UTILITY (13) ----- Hacking Suite > --- WEAPON (2) ------- (None) > --- INVENTORY (5) ---- Advanced Cryofiber Web Advanced ECM Suite Improved Reaction Control System Improved Plasma Cutter Companion Sword Peak State ------------ > --- POWER ------------ Light Ion Engine Light Quantum Reactor > --- PROPULSION ------- Advanced Heavy Treads Improved Flight Unit Improved Flight Unit Improved Flight Unit Cooled Impulse Thruster > --- UTILITY ---------- Advanced Sensor Array Improved Signal Interpreter Experimental Terrain Scan Processor Improved Reaction Control System Hacking Suite Hacking Suite Hacking Suite Hacking Suite Improved Hacking Suite System Shield > --- WEAPON ----------- Companion Sword > --- INVENTORY -------- Advanced Cryofiber Web Advanced ECM Suite Improved Plasma Cutter [Rating: 92] Favorites ----------- Power Improved Ion Engine Engine Improved Ion Engine Power Core Light Nuclear Core Reactor Light Quantum Reactor Propulsion Improved Treads Treads Improved Treads Leg Centrium Leg Wheel Wheel Flight Unit Improved Flight Unit Utility High-capacity Storage Unit Device Improved Heat Sink Storage High-capacity Storage Unit Processor Machine Analyzer Hackware Hacking Suite Protection Improved Light Armor Plating Weapon Heavy Particle Cannon Energy Gun Small Laser Energy Cannon Heavy Particle Cannon Ballistic Gun Light Assault Rifle Ballistic Cannon Improved Light Cannon Launcher Mini Grenade Launcher Slashing Weapon Companion Sword Build | -11 -10 -9 -9 -9 -9 -6 -5 -4 -3 -2 ------- Run | Yrd Mat Mat Sto Rec Scr Fac Fac Fac Res Res Slots Evolved 16 | . . 2 . . . 6 2 2 2 2 Power 1 | . . . . . . 1 . . . . Propulsion 4 | . . 1 . . . 2 1 . . . Utility 11 | . . 1 . . . 3 1 2 2 2 Weapon . | . . . . . . . . . . . Parts Attached 116 | 7 17 22 15 1 4 17 7 6 11 9 Power 16 | 1 3 2 3 . . 2 . . 3 2 Engine 11 | 1 3 2 3 . . . . . 1 1 Core 2 | . . . . . . 2 . . . . Reactor 3 | . . . . . . . . . 2 1 Propulsion 31 | 2 5 9 3 1 . 6 1 . 1 3 Treads 14 | . 2 7 3 1 . . . . . 1 Leg 1 | . . . . . . . . . . 1 Wheel 7 | 2 3 2 . . . . . . . . Hover . | . . . . . . . . . . . Flight 9 | . . . . . . 6 1 . 1 1 Utility 45 | 1 4 4 4 . 3 7 5 6 7 4 Device 17 | . 2 3 1 . 2 1 3 2 2 1 Storage 4 | 1 2 . . . . . . 1 . . Processor 5 | . . . . . . 2 1 . 2 . Hackware 13 | . . . . . . 3 1 3 3 3 Protection 6 | . . 1 3 . 1 1 . . . . Artifact . | . . . . . . . . . . . Weapon 24 | 3 5 7 5 . 1 2 1 . . . Energy Gun 2 | 1 1 . . . . . . . . . Energy Cannon 7 | . . 4 3 . . . . . . . Ballistic Gun 7 | 2 4 1 . . . . . . . . Ballistic Cannon 2 | . . 2 . . . . . . . . Launcher 4 | . . . 2 . . 1 1 . . . Special Weapon . | . . . . . . . . . . . Impact Weapon . | . . . . . . . . . . . Slashing Weapon 2 | . . . . . 1 1 . . . . Piercing Weapon . | . . . . . . . . . . . Special Melee Weapon . | . . . . . . . . . . . Unidentified Prototypes 4 | . . 2 . . 1 . . . . 1 Parts Lost 39 | . 8 1 1 . . . . 2 11 16 Power 3 | . . 1 . . . . . . 2 . Propulsion 15 | . 5 . . . . . . . 4 6 Utility 18 | . 1 . 1 . . . . 2 4 10 Weapon 3 | . 2 . . . . . . . 1 . Highest Loss Streak 14 | . 4 1 1 . . . . 1 9 14 To Critical Strikes . | . . . . . . . . . . . Average Slot Usage (%) 95 | . 82 99 99 99 97 96 99 99 84 63 Engine 9 | . 14 11 11 11 11 . . . . . Core 1 | . . . . . . 13 11 10 3 . Treads 22 | . 7 21 33 32 33 . . . . 3 Wheel 3 | . 17 11 . . . . . . . . Flight 5 | . . . . . . 32 35 31 25 13 Device 9 | . 4 14 10 11 11 2 6 4 5 5 Storage 9 | . 14 11 11 11 11 . . 2 3 . Processor 1 | . . . . . . 12 10 10 11 8 Hackware 3 | . . . . . . 16 16 23 18 26 Protection 7 | . . 7 11 11 9 5 5 5 2 . Energy Cannon 13 | . . 10 21 22 18 . . . . . Ballistic Gun 2 | . 23 1 . . . . . . . . Ballistic Cannon 1 | . . 9 . . . . . . . . Slashing Weapon 1 | . . . . . 1 5 5 5 4 1 Peak Build Rating 92 | 6 9 25 27 26 31 57 63 66 74 92 Average Rating 29 | 4 6 17 25 25 26 54 58 61 66 76 On Entrance 32 | . 6 7 25 26 26 31 55 57 66 58 Naked Turns . | . . . . . . . . . . . Heaviest Build 65 | 12 47 65 65 63 63 24 20 30 30 22 Greatest Support 66 | 32 40 66 66 66 66 25 30 30 30 30 Greatest Overweight (x) 5 | . 4 5 . 1 . . . . . . Average Overweight (x) . | . . 1 . . . . . . . . Largest Inventory Capacity 20 | 8 20 20 20 20 20 20 5 10 10 5 Average Capacity 16 | 6 14 20 20 20 20 5 5 7 8 5 Most Carried 20 | 6 9 20 20 20 20 19 5 7 7 5 Average Carried 14 | 3 7 15 19 19 19 5 4 4 5 4 Final Capacity 20 | 8 20 20 20 20 20 5 5 10 5 5 Final Carried 20 | 6 5 19 20 20 20 5 5 7 5 5 Class Distribution -------------------- 71% | Mutant 10% | Scavenger-Mutant 8% | Hacker-Sprinter 5% | Hacker-Scout 3% | Wizard-Mutant Dominant Class ---------------- Mutant | -10/Materials Scavenger-Mutant | -9/Materials Mutant | -9/Storage Mutant | -9/Recycling Mutant | -9/Scraptown Hacker-Sprinter | -6/Factory Hacker-Scout | -5/Factory Hacker-Scout | -4/Factory Hacker-Sprinter | -3/Research Wizard-Mutant | -2/Research Resources | -11 -10 -9 -9 -9 -9 -6 -5 -4 -3 -2 ----------- Run | Yrd Mat Mat Sto Rec Scr Fac Fac Fac Res Res Matter Collected 1761 | 280 282 524 190 10 6 . 270 17 123 59 Remotely . | . . . . . . . . . . . Salvage Created 3694 | 51 482 1152 1276 306 . . 21 70 169 167 Parts 194 | 4 27 60 76 8 . . 2 6 5 6 Haulers Intercepted 9 | . 2 5 2 . . . . . . . Recyclers Shooed 10 | . 1 7 . 1 . . . . . 1 Parts Field Recycled . | . . . . . . . . . . . Retrieved Matter . | . . . . . . . . . . . Parts Self-Destructed . | . . . . . . . . . . . Prevented . | . . . . . . . . . . . Kills | -11 -10 -9 -9 -9 -9 -6 -5 -4 -3 -2 ------- Run | Yrd Mat Mat Sto Rec Scr Fac Fac Fac Res Res Combat Hostiles Destroyed 65 | . 10 22 23 6 . . . 4 . . Guns 11 | . 10 1 . . . . . . . . Cannons 44 | . . 19 19 6 . . . . . . AOE 7 | . . . 3 . . . . 4 . . Classes Destroyed 15 | 1 5 4 3 2 . . . . . . Worker 4 | . 1 2 . . . . . . 1 . Builder 5 | . 1 1 3 . . . . . . . Tunneler 2 | . . 1 . . . . . . . 1 Hauler 9 | . 2 5 2 . . . . . . . Recycler 5 | 1 . 2 . . . . . . 1 1 Mechanic 1 | . . . 1 . . . . . . . Operator 4 | . . 1 2 . . . . 1 . . Watcher 5 | . . 2 2 . . . 1 . . . Swarmer 15 | . 3 8 . . . . . 4 . . Grunt 29 | . 7 10 11 1 . . . . . . Brawler 1 | . . . . 1 . . . . . . Duelist 2 | . . . 2 . . . . . . . Protector 1 | . . . 1 . . . . . . . Sentry 15 | . . 4 9 2 . . . . . . Programmer 2 | . . . . 2 . . . . . . Best Kill Streak 6 | 1 3 4 6 3 . . 1 4 1 1 Combat Bots Only 4 | . 3 4 4 3 . . . 4 . . Max Kills in Single Turn 2 | 1 1 1 2 1 . . 1 2 1 1 Gunslinging . | . . . . . . . . . . . Exploded 2 | . . . 2 . . . . 2 . . Melee . | . . . . . . . . . . . Uniques/NPCs Destroyed . | . . . . . . . . . . . Combat | -11 -10 -9 -9 -9 -9 -6 -5 -4 -3 -2 -------- Run | Yrd Mat Mat Sto Rec Scr Fac Fac Fac Res Res Hostile Shots Fired 625 | . 99 82 86 22 . 26 3 35 99 173 Missed 255 | . 26 25 27 4 . 16 2 21 53 81 Damage Taken 6684 | . 863 586 887 254 . 98 19 267 829 2881 Core 2143 | . 157 129 141 55 . . . 21 184 1456 Absorbed by Shields . | . . . . . . . . . . . Regen/Repaired (Parts) 41 | . . . . . . 21 20 . . . Core Remaining (%) 76 | 100 37 . . . 18 100 100 98 85 . Volleys Fired 269 | 5 101 79 69 11 . . . 4 . . Largest 2 | 2 2 2 2 2 . . . 1 . . Hottest 150 | 40 60 150 150 150 . . . 30 . . Shots Fired 507 | 10 175 158 138 22 . . . 4 . . Gun 189 | 10 175 4 . . . . . . . . Cannon 310 | . . 154 134 22 . . . . . . Launcher 8 | . . . 4 . . . . 4 . . Special . | . . . . . . . . . . . Kinetic 252 | 10 172 70 . . . . . . . . Thermal 247 | . 3 88 134 22 . . . . . . Explosive 8 | . . . 4 . . . . 4 . . Electromagnetic . | . . . . . . . . . . . Robot Hit Streak 21 | 9 16 13 21 9 . . . 10 . . Robot Miss Streak 6 | . 6 4 4 2 . . . . . . Penetration Max . | . . . . . . . . . . . Secondary Targets 1 | . 1 . . . . . . . . . Max Gunslinging Chain 1 | . 1 . . . . . . . . . Shots Hit Robots 341 | 9 108 106 83 14 . . 3 6 4 8 Core Hits 132 | 3 39 33 38 6 . . 1 6 3 3 Critical Kills 3 | . 1 2 . . . . . . . . Critical Parts Destroyed . | . . . . . . . . . . . Critical Strikes 3 | . 1 2 . . . . . . . . Meltdown 2 | . . 2 . . . . . . . . Destroy 1 | . 1 . . . . . . . . . Melee Attacks 99 | . . . . . . 27 15 25 20 12 Impact . | . . . . . . . . . . . Slashing 99 | . . . . . . 27 15 25 20 12 Piercing . | . . . . . . . . . . . Sneak Attacks 7 | . . . . . . . 1 1 2 3 Combat Hostiles . | . . . . . . . . . . . Follow-up Attacks . | . . . . . . . . . . . Damage Inflicted 7957 | 70 895 2644 2538 431 . . 208 488 236 447 Guns 995 | 70 895 30 . . . . . . . . Cannons 5348 | . . 2614 2303 431 . . . . . . Explosions 427 | . . . 235 . . . . 192 . . Melee 1179 | . . . . . . . 208 296 234 441 Ramming 8 | . . . . . . . . . 2 6 Kinetic 1848 | 70 875 903 . . . . . . . . Thermal 4495 | . 20 1741 2303 431 . . . . . . Explosive 427 | . . . 235 . . . . 192 . . Electromagnetic . | . . . . . . . . . . . Impact . | . . . . . . . . . . . Slashing 1179 | . . . . . . . 208 296 234 441 Piercing . | . . . . . . . . . . . Highest Corruption 23 | . . . 1 2 . . . 3 . 23 Average Corruption 1 | . . . 1 1 . . . 2 . 5 Corruption Purged . | . . . . . . . . . . . Corruption Blocked . | . . . . . . . . . . . Effects 20 | . . . 6 11 . . . 1 . 2 Message Errors 6 | . . . 2 3 . . . . . 1 Matter Fused 3 | . . . 1 1 . . . . . 1 Heat Flow Errors 4 | . . . . 4 . . . . . . Energy Discharges 1 | . . . 1 . . . . . . . Parts Rejected 1 | . . . . 1 . . . . . . Parts Fused 1 | . . . . 1 . . . . . . Data Loss (minor) 2 | . . . 1 1 . . . . . . Alerts 2 | . . . 1 . . . . 1 . . Overload Shots . | . . . . . . . . . . . Overflow Damage 418 | . . 43 18 46 . . 31 138 58 84 Projectiles 107 | . . 43 18 46 . . . . . . Explosions 6 | . . . . . . . . 6 . . Melee 305 | . . . . . . . 31 132 58 84 Knockbacks 8 | . . 8 . . . . . . . . Impact . | . . . . . . . . . . . Kinetic 8 | . . 8 . . . . . . . . Secondary . | . . . . . . . . . . . Self-Inflicted Damage 3 | . . . . . . . . . 1 2 Shots . | . . . . . . . . . . . Rammed 5 | . . . . . . . . . 1 4 Targets Rammed 5 | . . . . . . . . . 1 4 Kicked . | . . . . . . . . . . . Crushed . | . . . . . . . . . . . Highest Temperature 300 | . 30 168 237 300 . 61 174 24 . . Average Temperature 53 | . 12 44 73 109 . 17 70 8 . . Received Heat Transfer 1224 | . 336 207 372 45 . 21 . . 90 153 Siege Activations . | . . . . . . . . . . . Robots Corrupted . | . . . . . . . . . . . Combat Hostiles . | . . . . . . . . . . . Parts Fried . | . . . . . . . . . . . Impact Corruptions . | . . . . . . . . . . . Robots Melted 4 | . . 3 1 . . . . . . . Combat Hostiles 3 | . . 2 1 . . . . . . . Parts Melted 18 | . . 7 9 2 . . . . . . Heat Transferred 6416 | . 50 2479 3332 555 . . . . . . Parts Sabotaged . | . . . . . . . . . . . Parts Stolen . | . . . . . . . . . . . Parts Stripped . | . . . . . . . . . . . Power Chain Reactions . | . . . . . . . . . . . Alert | -11 -10 -9 -9 -9 -9 -6 -5 -4 -3 -2 ------- Run | Yrd Mat Mat Sto Rec Scr Fac Fac Fac Res Res Peak Influence 675 | 5 175 450 675 423 . 379 589 539 394 252 Initial 288 | . 3 8 56 238 . . 185 288 192 221 Average 257 | 1 51 154 453 232 . 194 441 396 275 164 Maximum Alert Level 2 | . . 2 2 2 . 1 2 2 1 1 Low Security (%) 42 | 100 100 72 15 16 . 64 21 . 8 66 Level 1 33 | . . 20 15 82 . 35 3 43 91 33 Level 2 24 | . . 6 69 1 . . 75 56 . . Level 3 . | . . . . . . . . . . . Level 4 . | . . . . . . . . . . . Level 5 . | . . . . . . . . . . . High Security . | . . . . . . . . . . . Max Security . | . . . . . . . . . . . Squads Dispatched 31 | . 1 2 3 . . 5 6 9 1 4 Investigation 15 | . 1 1 . . . 4 5 4 . . Extermination 2 | . . . . . . . . 1 . 1 Reinforcement 12 | . . 1 1 . . 1 1 4 1 3 Assault 2 | . . . 2 . . . . . . . Garrison . | . . . . . . . . . . . Intercept . | . . . . . . . . . . . Searches Triggered . | . . . . . . . . . . . Construction Impeded 1 | . . . . . . . . 1 . . Haulers Reinforced . | . . . . . . . . . . . Active Scanning Responses . | . . . . . . . . . . . Cargo Convoy Interrupts . | . . . . . . . . . . . Stealth | -11 -10 -9 -9 -9 -9 -6 -5 -4 -3 -2 --------- Run | Yrd Mat Mat Sto Rec Scr Fac Fac Fac Res Res Distress Signals 7 | . 1 2 1 . . . . . . 3 Communications Jammed . | . . . . . . . . . . . Distress Signals . | . . . . . . . . . . . Times Spotted 218 | . 23 36 37 5 . 24 13 12 27 41 Peak Tracking Total 23 | . 4 5 5 4 . 9 6 5 15 23 Tactical Retreats 22 | . 1 3 1 . . 6 1 3 4 3 Traps | -11 -10 -9 -9 -9 -9 -6 -5 -4 -3 -2 ------- Run | Yrd Mat Mat Sto Rec Scr Fac Fac Fac Res Res Traps Triggered 5 | . . . 3 . . . . . . 2 Indirectly . | . . . . . . . . . . . Trap Hack Attempts . | . . . . . . . . . . . Triggered . | . . . . . . . . . . . Disarmed . | . . . . . . . . . . . Reprogrammed 1 | . . 1 . . . . . . . . Reused 1 | . . . . . . 1 . . . . Traps Extracted . | . . . . . . . . . . . Installed 1 | . . . . . . 1 . . . . Triggered 1 | . . . . . . 1 . . . . Most Traps Carried 1 | . . . . . 1 1 . . . . Machines | -11 -10 -9 -9 -9 -9 -6 -5 -4 -3 -2 ---------- Run | Yrd Mat Mat Sto Rec Scr Fac Fac Fac Res Res Machines Disabled 7 | . . 3 4 . . . . . . . Max in Single Turn 1 | . . 1 1 . . . . . . . Garrison Access 3 | . . . . . . 2 1 . . . Machines Repaired . | . . . . . . . . . . . Machines Dismantled . | . . . . . . . . . . . Machines Sabotaged . | . . . . . . . . . . . Overloaded Fab Kills . | . . . . . . . . . . . Hacking | -11 -10 -9 -9 -9 -9 -6 -5 -4 -3 -2 --------- Run | Yrd Mat Mat Sto Rec Scr Fac Fac Fac Res Res Machines Accessed 67 | . 6 4 10 13 3 14 6 8 1 2 Terminals 35 | . 5 4 8 6 . 7 . 2 1 2 Fabricators 5 | . . . . . . 1 2 2 . . Repair Stations 5 | . . . 1 . . 2 1 1 . . Recycling Units 13 | . 1 . . 7 . 1 1 3 . . Scanalyzers 2 | . . . . . . 1 1 . . . Garrison Access 4 | . . . 1 . . 2 1 . . . Total Hacks 187 | . 21 26 20 24 6 45 16 19 1 9 Successful 102 | . 7 15 5 13 6 27 9 13 1 6 Failed 84 | . 14 11 15 10 . 18 7 6 . 3 Catastrophic 9 | . 2 . 3 2 . . 1 . . 1 Database Lockouts 1 | . . . . 1 . . . . . . Manual 97 | . 15 16 5 19 . 20 7 9 1 5 Terminals 119 | . 20 26 16 17 . 24 . 6 1 9 Fabricators 19 | . . . . . . 6 8 5 . . Repair Stations 13 | . . . 3 . . 4 4 2 . . Recycling Units 17 | . 1 . . 7 . 2 1 6 . . Scanalyzers 5 | . . . . . . 4 1 . . . Garrison Access 8 | . . . 1 . . 5 2 . . . Terminal Hacks 46 | . 4 9 4 4 6 10 . 3 1 5 Record 8 | . . . . . 4 1 . 1 . 2 Part Schematic 2 | . . . 1 . . 1 . . . . Robot Schematic 2 | . . . . 2 . . . . . . Robot Analysis 4 | . . 3 . 1 . . . . . . Prototype ID Bank 1 | . . 1 . . . . . . . . Open Door 4 | . . . 3 . 1 . . . . . Open DSF 1 | . . . . . . 1 . . . . Level Access Points 4 | . . . . . . 1 . 1 1 1 Branch Access Points 3 | . 1 . . . . 1 . . . 1 Terminal Index 1 | . . . . . . 1 . . . . Alert Level 1 | . . . . . . 1 . . . . Unreport Threat 7 | . 2 3 . . . 1 . . . 1 Locate Traps 3 | . . 1 . 1 . 1 . . . . Reprogram Traps 1 | . . 1 . . . . . . . . Recall Investigation 2 | . . . . . . 1 . 1 . . Hauler Manifests 1 | . 1 . . . . . . . . . Derelict Proto ID Bank 1 | . . . . . 1 . . . . . Fabricator Hacks 11 | . . . . . . 3 3 5 . . Network Status 3 | . . . . . . 1 1 1 . . Load Schematic 5 | . . . . . . 1 2 2 . . Build 3 | . . . . . . 1 . 2 . . Repair Station Hacks 4 | . . . . . . 2 2 . . . Scan Component 2 | . . . . . . 1 1 . . . Repair 2 | . . . . . . 1 1 . . . Recycling Unit Hacks . | . . . . . . . . . . . Scanalyzer 3 | . . . . . . 3 . . . . Insert Component 2 | . . . . . . 2 . . . . Analyze 1 | . . . . . . 1 . . . . Garrison Access Hacks 1 | . . . . . . 1 . . . . Seal Access 1 | . . . . . . 1 . . . . Unauthorized Hacks 37 | . 3 6 1 9 . 8 4 5 . 1 Terminals 18 | . 2 6 . 2 . 5 . 2 . 1 Botnet 12 | . 2 2 . 2 . 3 . 2 . 1 Disrupt 1 | . . 1 . . . . . . . . Skim 5 | . . 3 . . . 2 . . . . Fabricators 1 | . . . . . . . 1 . . . Recompile 1 | . . . . . . . 1 . . . Repair Stations 7 | . . . 1 . . 2 1 3 . . Mechanics 2 | . . . 1 . . 1 . . . . Recycling Units 8 | . 1 . . 7 . . . . . . Tunnel 8 | . 1 . . 7 . . . . . . Fedlink 4 | . . . . . . 1 1 2 . . Scrapoids 1 | . . . . . . . . 1 . . Scanalyzers 1 | . . . . . . . 1 . . . Extract 1 | . . . . . . . 1 . . . Garrison Access 2 | . . . . . . 1 1 . . . Jam 2 | . . . . . . 1 1 . . . Data Cores Recovered 2 | . . . 1 . . . . 1 . . Used . | . . . . . . . . . . . Hacking Detections 47 | . 5 4 9 5 . 12 4 6 . 2 Full Trace Events 6 | . 1 1 . . . 2 1 1 . . Feedback Events . | . . . . . . . . . . . Feedback Blocked . | . . . . . . . . . . . Robot Schematics Acquired 2 | . . . . 2 . . . . . . Robots Built . | . . . . . . . . . . . Authchips . | . . . . . . . . . . . Time . | . . . . . . . . . . . Total Robot Build Rating . | . . . . . . . . . . . Part Schematics Acquired 10 | . . . 1 . . 2 7 . . . Parts Built 3 | . . . . . . 1 . 2 . . Authchips 1 | . . . . . . . . 1 . . Time 178 | . . . . . . 36 . 142 . . Total Part Build Rating 13 | . . . . . . 3 . 10 . . Parts Repaired 2 | . . . . . . 1 1 . . . Time 41 | . . . . . . 25 16 . . . Parts Recycled . | . . . . . . . . . . . Recycled Matter . | . . . . . . . . . . . Retrieved Matter . | . . . . . . . . . . . Retrieved Components . | . . . . . . . . . . . Parts Scanalyzed 2 | . . . . . . 2 . . . . Part Schematics Acquired 1 | . . . . . . 1 . . . . Parts Damaged . | . . . . . . . . . . . Bothacking | -11 -10 -9 -9 -9 -9 -6 -5 -4 -3 -2 ------------ Run | Yrd Mat Mat Sto Rec Scr Fac Fac Fac Res Res Used RIF Installer . | . . . . . . . . . . . Robots Hacked . | . . . . . . . . . . . Non-combat . | . . . . . . . . . . . Combat . | . . . . . . . . . . . Robot Hacks Applied . | . . . . . . . . . . . Relay Couplers Released . | . . . . . . . . . . . Fabnet Peak Effective % . | . . . . . . . . . . . Robots Rewired 4 | . . . . 4 . . . . . . Allies Hacked . | . . . . . . . . . . . Hacks Repelled . | . . . . . . . . . . . Allies | -11 -10 -9 -9 -9 -9 -6 -5 -4 -3 -2 -------- Run | Yrd Mat Mat Sto Rec Scr Fac Fac Fac Res Res Total Allies 11 | . . . 2 4 . . . 5 . . Largest Group 5 | . . . 2 3 3 3 . 5 . . Highest-Rated Group 238 | . . . 62 50 50 50 . 238 . . Highest-Rated Ally 50 | . . . 31 21 21 21 . 50 . . Total Orders 9 | . . . . . . 9 . . . . ROAM 3 | . . . . . . 3 . . . . EXPLORE 6 | . . . . . . 6 . . . . Ally Attacks 31 | . . . 24 1 . 6 . . . . Total Damage 587 | . . . 428 7 . 152 . . . . Kills 8 | . . . 7 . . 1 . . . . Allies Corrupted . | . . . . . . . . . . . Allies Melted . | . . . . . . . . . . . Intel | -11 -10 -9 -9 -9 -9 -6 -5 -4 -3 -2 ------- Run | Yrd Mat Mat Sto Rec Scr Fac Fac Fac Res Res Robot Analysis Total 4 | . . 3 . 1 . . . . . . Derelict Logs Recovered . | . . . . . . . . . . . Drone Launches 6 | . . . . . . 6 . . . . Drone Recoveries 2 | . . . . . . 2 . . . . Exploration | -11 -10 -9 -9 -9 -9 -6 -5 -4 -3 -2 ------------- Run | Yrd Mat Mat Sto Rec Scr Fac Fac Fac Res Res Turns Passed 8207 | 67 952 1001 1449 1247 1948 331 277 418 240 277 Spaces Moved 6437 | 40 506 396 688 698 1205 672 583 753 468 428 Core 281 | 3 . . . . . . . . . 278 Treads 2836 | . 79 166 688 698 1205 . . . . . Legs 2 | . . . . . . . . . . 2 Wheels 694 | 37 427 230 . . . . . . . . Hover . | . . . . . . . . . . . Flight 2624 | . . . . . . 672 583 753 468 148 Fastest Speed 25 | 50 100 110 160 160 160 28 25 25 25 29 Average Speed 97 | 96 123 144 160 160 160 28 25 26 26 51 Slowest Speed 240 | 100 240 240 160 240 160 28 28 28 34 120 Overloaded Moves . | . . . . . . . . . . . Propulsion Burnouts . | . . . . . . . . . . . Robots Hopped 19 | . . . . . . 4 3 6 3 3 Cave-ins Triggered . | . . . . . . . . . . . Exploration Rate (%) 44 | 4 71 45 85 99 68 27 18 20 24 25 Regions Visited 10 Branch Regions 3 Pre-discovered Areas 8 | . 1 . . 7 . . . . . . Known Exits Taken 4 | . . . . . . 1 1 1 1 . Unknown Exits Taken 6 | 1 1 1 1 1 1 . . . . . Scrap Searched 3 | . . . . . 3 . . . . . Spaces Dug 82 | . . . 14 . . 25 10 17 15 1 Terrain Destroyed 166 | . . 32 48 7 . 25 10 28 15 1 Melee 68 | . . . . . . 25 10 17 15 1 Projectile 49 | . . 14 28 7 . . . . . . AOE 49 | . . 18 20 . . . . 11 . . Terrain Rammed . | . . . . . . . . . . . Walls Destroyed . | . . . . . . . . . . . Machines Disabled . | . . . . . . . . . . . Actions | -11 -10 -9 -9 -9 -9 -6 -5 -4 -3 -2 --------- Run | Yrd Mat Mat Sto Rec Scr Fac Fac Fac Res Res Total 7745 | 57 689 670 905 802 1228 774 682 924 552 462 Wait 632 | . 55 119 95 46 7 46 74 135 48 7 Move 6392 | 39 505 395 687 697 1204 663 576 741 462 423 Hop 17 | . . . . . . 4 3 5 3 2 Pick Up 80 | 5 5 29 17 2 6 4 4 7 1 . Fast Attach 37 | 7 4 6 3 1 . 1 2 1 5 7 Attach 44 | . 6 4 1 . 3 15 4 4 5 2 Detach 8 | 1 . 2 . . . . . . 3 2 Swap 36 | . 7 13 11 . 1 1 1 1 1 . Drop 83 | . 6 23 22 2 7 12 3 1 4 3 Fire 269 | 5 101 79 69 11 . . . 4 . . Melee 99 | . . . . . . 27 15 25 20 12 Ram 4 | . . . . . . . . . . 4 Kick . | . . . . . . . . . . . Crush . | . . . . . . . . . . . Escape Stasis . | . . . . . . . . . . . Rewire 43 | . . . . 43 . . . . . . Trap 1 | . . . . . . 1 . . . . Miscellaneous . | . . . . . . . . . . . Route ------- -11/Scrapyard -10/Materials (discovered 4 exits: *Mat x3 / *Min) -9/Materials (discovered 3 exits: [*Mat] / [*Min] / *Sto) -9/Storage (discovered 2 exits: [*Mat] / *Rec) -9/Recycling (discovered 2 exits: [*Fac] / *Scr) -9/Scraptown (discovered 2 exits: *Fac x2) -6/Factory (discovered 6 exits: *Fac x4 / Low x2) -5/Factory (discovered 3 exits: *Fac / *Upp x2) -4/Factory (discovered 5 exits: *Res x4 / *Upp) -3/Research (discovered 3 exits: *Res x3) -2/Research (discovered 5 exits: Acc x3 / Tes x2) History --------- Turn | Location | Event 28 | -11/Scrapyard | Discovered new exit (range 16) 68 | -11/Scrapyard | Entered Materials 151 | -10/Materials | Discovered new exit (range 11) 273 | -10/Materials | Discovered new exit (range 15) 304 | -10/Materials | Build established: Mutant 470 | -10/Materials | Core integrity fell below 50% 629 | -10/Materials | Lost 4 parts (2n1u1w) 730 | -10/Materials | Discovered new exit (range 10) 737 | -10/Materials | Identified exit to Mines 911 | -10/Materials | Discovered new exit (range 13) 1020 | -10/Materials | Entered another Materials area 1020 | -9/Materials | Evolved 2 slots: Propulsion x1, Utility x1 1342 | -9/Materials | Discovered new exit (range 7) 1369 | -9/Materials | Build established: Scavenger-Mutant 1391 | -9/Materials | Discovered new exit (range 7) 1846 | -9/Materials | Discovered new exit (range 9) 2021 | -9/Materials | Entered Storage 2191 | -9/Storage | Build established: Mutant 2358 | -9/Storage | Met a pair of Derelict thieves 2483 | -9/Storage | Core integrity fell below 50% 3261 | -9/Storage | Discovered new exit (range 15) 3464 | -9/Storage | Used back door to open Recycling access 3464 | -9/Storage | Discovered new exit (range 5) 3470 | -9/Storage | Entered Recycling 3686 | -9/Recycling | Discovered new exit (range 9) 3810 | -9/Recycling | Core integrity fell below 20% 4677 | -9/Recycling | Scanned before Scraplab entrance 4701 | -9/Recycling | Entered Scraplab 4714 | -9/Recycling | Discovered new exit (range 3) 4717 | -9/Recycling | Entered Scraptown 4717 | -9/Scraptown | Accompanied by 3 allies 4717 | -9/Scraptown | System corruption cleaned by C-Scrubber 4985 | -9/Scraptown | Visited Junk Repository 5060 | -9/Scraptown | Visited Cyclists 5128 | -9/Scraptown | Discovered new exit (range 7) 5240 | -9/Scraptown | Visited UFD Registry 5240 | -9/Scraptown | Registered with UFD as "Fibersourcer" 5276 | -9/Scraptown | Visited Scrapoid Research Area 5285 | -9/Scraptown | Visited Symbiants 5324 | -9/Scraptown | Entered Cyclist Reading Room 5426 | -9/Scraptown | Visited Scrap Suit Storage 5458 | -9/Scraptown | Visited LU-1G1's Boring Crew 5804 | -9/Scraptown | Visited Sword Containment 5920 | -9/Scraptown | Visited Infowarlord's Domain 5983 | -9/Scraptown | Visited Derelict Rescue Squad 6024 | -9/Scraptown | Visited A0-MCA Data Center 6034 | -9/Scraptown | Given an A- rating by A0-MCA 6074 | -9/Scraptown | Visited Modified Component R&D 6168 | -9/Scraptown | Visited Science Guys 6397 | -9/Scraptown | Found Exp. Signal Interpreter 6470 | -9/Scraptown | Found A0-MCA's Component Scanner 6647 | -9/Scraptown | Discovered new exit (range 5) 6665 | -9/Scraptown | Entered Factory 6665 | -6/Factory | Accompanied by 3 allies 6665 | -6/Factory | Evolved 6 slots: Power x1, Propulsion x2, Utility x3 6773 | -6/Factory | Spotted B-75 Beast 6776 | -6/Factory | Lost 4 allies 6851 | -6/Factory | Repaired Imp. Flight Unit 6889 | -6/Factory | Identified exit to Lower Caves 6919 | -6/Factory | Fabricated Hacking Suite? 6935 | -6/Factory | Identified exit to Factory 6971 | -6/Factory | Build established: Hacker-Sprinter 6996 | -6/Factory | Entered another Factory area 6996 | -5/Factory | Evolved 2 slots: Propulsion x1, Utility x1 7018 | -5/Factory | Repaired Mni. Grenade Launcher 7030 | -5/Factory | Discovered new exit (range 12) 7106 | -5/Factory | Discovered new exit (range 10) 7112 | -5/Factory | Identified exit to Upper Caves 7262 | -5/Factory | Discovered new exit (range 6) 7273 | -5/Factory | Identified exit to Factory 7273 | -5/Factory | Entered another Factory area 7273 | -4/Factory | Evolved 2 slots: Utility x2 7284 | -4/Factory | Discovered new exit (range 15) 7310 | -4/Factory | Identified exit to Upper Caves 7321 | -4/Factory | Identified exit to Research 7410 | -4/Factory | Fabricated Imp. Hacking Suite (x1) 7510 | -4/Factory | Fabricated Imp. Hacking Suite (x1) 7655 | -4/Factory | Scrapoids reinforcements arrived? 7691 | -4/Factory | Entered Research 7691 | -3/Research | Evolved 2 slots: Utility x2 7722 | -3/Research | Spotted B-86 Titan 7802 | -3/Research | Identified exit to Research 7901 | -3/Research | Found Exp. Terrain Scan Processor 7931 | -3/Research | Entered another Research area 7931 | -2/Research | Evolved 2 slots: Utility x2 7950 | -2/Research | Lost 9 parts (1p3n4u1w) 7978 | -2/Research | Identified exit to Testing 8187 | -2/Research | System corruption reached 10% 8187 | -2/Research | Identified exit to Access 8188 | -2/Research | Core integrity fell below 50% 8201 | -2/Research | Spotted B-90 Cyclops 8205 | -2/Research | Core integrity fell below 20% 8208 | -2/Research | Destroyed by P-80 Master with Gamma Rifle Last Messages --------------- 08202_ Critical hit (Blast). 08202_ Knocked back. 08203_ System Shield destroyed. 08203_ Broken Imp. Signal Interpreter destroyed. 08203_ System corrupted by crushing effect (+2). 08203_ System corrupted by crushing effect (+5). 08203_ Knocked back. 08203_ U-05 Engineer lays Concrete. 08203_ Exp. Terrain Scan Processor destroyed. 08203_ System corrupted by crushing effect (+5). 08203_ Knocked back. 08203_ Hacking Suite destroyed. 08203_ Knocked back. 08203_ U-05 Engineer destroyed. 08204_ The unstable cave ceiling collapses. 08204_ Centrium Leg destroyed. 08204_ Knocked back. 08205_ P-80 Master resets C-57 Dissector, system corruption cleaned. 08206_ C-57 Dissector destroyed. Map ----- +----------------------------------------------------+ | ?????????# #? #????????????????????????? | | ??######## #?#########????????????????????????? | | #???? = ?????????????????????????? | | ??######## *#???? ?????????????????????????? | | ???????#"" =%" ???" "???????????????????????? | | ???????#T !" ?""" ""???????????????????????? | | ???????### [" ?""" R"#?????????????????????? | | ?????????# %" ? """#?????????????????????? | | ?????????# [" ? ""#?????????????????????? | | ?????????# " """ #?????????????????????? | | ????????## """ #?????????????????????? | | ????????# # """ ####??????????????????? | | ????????#T #? # #??????????????????? | | ????????## #??? #??????????????????? | | ?????????# ###### ###########??????????? | | ??????#### p% ?????????? | | ??????+ ! ^ ?????????? | | ??????#### % % ?????????? | | ????????#" p H =% p ?????????? | | ?????######+####### * ### ??????????? | | ?????# # !! #?????????????? | | ?????# # =% c !! #?????????????? | | ?????# # * # #?????????????? | | ?????# # /g ###???????????? | | ?????# # # BB#???????????? | | ?????# # # @ BB#???????????? | | ?????# ! #* ##g ###########???????????? | | ?????# # ## #?????????????????????? | | ?????# # * ## g#?????????????????????? | | ?????# ####### u ?????????????????????? | | ?????# #?????# ?????